Cogmind - Beta 14 @@@ ROGUE MODE // 2024.10.05 @ 11:18:08 Player: saltine Result: Destroyed by D-53 Grenadier with Mini Grenade Launcher Performance ------------- Evolutions (0) 0 Regions Visited (2) 400 Robots Destroyed (13) 65 Value Destroyed (397) 397 Prototype IDs (0) 0 Alien Tech Used (0) 0 Bonus (0) 0 TOTAL SCORE: 862 Bonus ------- None Cogmind --------- Core Integrity 0/250 Matter 300/300 Energy 250/250 System Corruption 0% Temperature Cool (0) Movement Rolling (140) Ox4 Location -10/Mines Parts ------- > --- POWER (1) -------- Ion Engine > --- PROPULSION (2) --- Wheel > --- UTILITY (2) ------ High-capacity Storage Unit > --- WEAPON (2) ------- EM Pulse Gun EM Pulse Gun > --- INVENTORY (20) --- Medium Storage Unit Medium Matter Pod (100) Large Matter Pod (47) Seismic Detector Particle Cannon Particle Cannon Light Assault Rifle Light Assault Rifle Heavy Assault Rifle Heavy Assault Rifle Heavy Assault Rifle Heavy Assault Rifle Light Cannon Light Cannon Grenade Launcher Datajack Mining Laser Peak State ------------ > --- POWER ------------ Light Ion Engine > --- PROPULSION ------- Light Treads Light Treads > --- UTILITY ---------- High-capacity Storage Unit Shield Generator > --- WEAPON ----------- Particle Cannon Light Assault Rifle > --- INVENTORY -------- Ion Engine Wheel Medium Storage Unit Medium Matter Pod Large Matter Pod Seismic Detector EM Pulse Gun EM Pulse Gun Particle Cannon Light Assault Rifle Heavy Assault Rifle Heavy Assault Rifle Heavy Assault Rifle Heavy Assault Rifle Light Cannon Light Cannon Grenade Launcher Datajack Mining Laser [Rating: 11] Favorites ----------- Power Light Ion Engine Engine Light Ion Engine Propulsion Light Treads Treads Light Treads Leg Aluminum Leg Wheel Wheel Utility Shield Generator Device Shield Generator Storage High-capacity Storage Unit Weapon Light Assault Rifle Energy Gun EM Pulse Gun Energy Cannon Particle Cannon Ballistic Gun Light Assault Rifle Launcher Grenade Launcher Build | -11 -10 -10 ------- Run | Yrd Mat Min Slots Evolved . | . . . Power . | . . . Propulsion . | . . . Utility . | . . . Weapon . | . . . Parts Attached 18 | 3 8 7 Power 2 | . 1 1 Engine 2 | . 1 1 Core . | . . . Reactor . | . . . Propulsion 5 | 2 2 1 Treads 4 | 2 2 . Leg . | . . . Wheel 1 | . . 1 Hover . | . . . Flight . | . . . Utility 3 | . 3 . Device 1 | . 1 . Storage 2 | . 2 . Processor . | . . . Hackware . | . . . Protection . | . . . Artifact . | . . . Weapon 8 | 1 2 5 Energy Gun 3 | . . 3 Energy Cannon 1 | . . 1 Ballistic Gun 3 | 1 1 1 Ballistic Cannon . | . . . Launcher 1 | . 1 . Special Weapon . | . . . Impact Weapon . | . . . Slashing Weapon . | . . . Piercing Weapon . | . . . Special Melee Weapon . | . . . Unidentified Prototypes . | . . . Parts Lost 5 | . . 5 Power 1 | . . 1 Propulsion 2 | . . 2 Utility 1 | . . 1 Weapon 1 | . . 1 Highest Loss Streak 3 | . . 3 To Critical Strikes . | . . . Average Slot Usage (%) 98 | . 98 97 Engine 14 | . 14 14 Treads 27 | . 27 26 Device 12 | . 13 11 Storage 14 | . 14 14 Energy Gun 1 | . . 4 Energy Cannon 2 | . . 9 Ballistic Gun 24 | . 27 14 Peak Build Rating 11 | 6 10 11 Average Rating 9 | 6 9 10 On Entrance 7 | 6 6 10 Naked Turns . | . . . Heaviest Build 50 | 10 47 50 Greatest Support 40 | 40 40 40 Greatest Overweight (x) 4 | . 1 4 Average Overweight (x) . | . . 1 Largest Inventory Capacity 20 | 8 20 20 Average Capacity 17 | 8 16 20 Most Carried 20 | 6 20 20 Average Carried 15 | 4 14 18 Final Capacity 20 | 8 20 20 Final Carried 20 | 4 20 17 Class Distribution -------------------- 100% | Mutant Dominant Class ---------------- Mutant | -10/Materials Mutant | -10/Mines Resources | -11 -10 -10 ----------- Run | Yrd Mat Min Matter Collected 637 | 230 159 248 Remotely . | . . . Salvage Created 691 | . 525 166 Parts 38 | . 32 6 Haulers Intercepted 2 | . 2 . Recyclers Shooed . | . . . Parts Field Recycled . | . . . Retrieved Matter . | . . . Parts Self-Destructed . | . . . Prevented . | . . . Kills | -11 -10 -10 ------- Run | Yrd Mat Min Combat Hostiles Destroyed 11 | . 8 3 Guns 10 | . 8 2 Cannons 1 | . . 1 Classes Destroyed 2 | . 2 . Hauler 2 | . 2 . Grunt 10 | . 8 2 Best Kill Streak 3 | . 3 2 Combat Bots Only 3 | . 3 2 Max Kills in Single Turn 1 | . 1 1 Gunslinging . | . . . Exploded . | . . . Melee . | . . . Uniques/NPCs Destroyed 1 | . . 1 YI-UF0 (-10/Mines) Combat | -11 -10 -10 -------- Run | Yrd Mat Min Hostile Shots Fired 107 | . 55 52 Missed 33 | . 10 23 Damage Taken 1104 | . 444 660 Core 253 | . 62 191 Absorbed by Shields 214 | . 151 63 Regen/Repaired (Parts) 150 | . 150 . Core Remaining (%) 100 | 100 . . Volleys Fired 75 | . 54 21 Largest 2 | . 2 2 Hottest 88 | . 40 88 Shots Fired 142 | . 106 36 Gun 139 | . 104 35 Cannon 1 | . . 1 Launcher 2 | . 2 . Special . | . . . Kinetic 122 | . 104 18 Thermal 1 | . . 1 Explosive 2 | . 2 . Electromagnetic 17 | . . 17 Robot Hit Streak 14 | . 14 7 Robot Miss Streak 5 | . 5 5 Penetration Max . | . . . Secondary Targets 2 | . 1 1 Max Gunslinging Chain 1 | . 1 1 Shots Hit Robots 94 | . 72 22 Core Hits 36 | . 28 8 Critical Kills . | . . . Critical Parts Destroyed . | . . . Critical Strikes . | . . . Melee Attacks . | . . . Impact . | . . . Slashing . | . . . Piercing . | . . . Sneak Attacks . | . . . Combat Hostiles . | . . . Follow-up Attacks . | . . . Damage Inflicted 878 | . 655 223 Guns 813 | . 614 199 Cannons 23 | . . 23 Explosions 40 | . 40 . Melee . | . . . Ramming 2 | . 1 1 Kinetic 712 | . 614 98 Thermal 23 | . . 23 Explosive 40 | . 40 . Electromagnetic 101 | . . 101 Impact . | . . . Slashing . | . . . Piercing . | . . . Highest Corruption . | . . . Average Corruption . | . . . Corruption Purged . | . . . Corruption Blocked . | . . . Overload Shots . | . . . Overflow Damage . | . . . Projectiles . | . . . Explosions . | . . . Melee . | . . . Knockbacks . | . . . Impact . | . . . Kinetic . | . . . Secondary . | . . . Self-Inflicted Damage . | . . . Shots . | . . . Rammed 2 | . 1 1 Targets Rammed 2 | . 1 1 Kicked . | . . . Crushed . | . . . Highest Temperature 90 | . 33 90 Average Temperature 19 | . 12 28 Received Heat Transfer 338 | . 248 90 Siege Activations . | . . . Robots Corrupted . | . . . Combat Hostiles . | . . . Parts Fried . | . . . Impact Corruptions . | . . . Robots Melted . | . . . Combat Hostiles . | . . . Parts Melted . | . . . Heat Transferred 37 | . . 37 Parts Sabotaged . | . . . Parts Stolen . | . . . Parts Stripped . | . . . Power Chain Reactions . | . . . Alert | -11 -10 -10 ------- Run | Yrd Mat Min Peak Influence 182 | . 182 80 Initial 28 | . . 28 Average 64 | . 66 61 Maximum Alert Level . | . . . Low Security (%) 100 | 100 100 100 Level 1 . | . . . Level 2 . | . . . Level 3 . | . . . Level 4 . | . . . Level 5 . | . . . High Security . | . . . Max Security . | . . . Squads Dispatched 3 | . 3 . Investigation . | . . . Extermination . | . . . Reinforcement 3 | . 3 . Assault . | . . . Garrison . | . . . Intercept . | . . . Searches Triggered . | . . . Construction Impeded . | . . . Haulers Reinforced . | . . . Active Scanning Responses . | . . . Cargo Convoy Interrupts . | . . . Stealth | -11 -10 -10 --------- Run | Yrd Mat Min Distress Signals 2 | . 2 . Communications Jammed . | . . . Distress Signals . | . . . Times Spotted 26 | . 21 5 Peak Tracking Total 4 | . 4 2 Tactical Retreats 2 | . 2 . Traps | -11 -10 -10 ------- Run | Yrd Mat Min Traps Triggered . | . . . Indirectly . | . . . Trap Hack Attempts . | . . . Triggered . | . . . Disarmed . | . . . Reprogrammed . | . . . Reused . | . . . Traps Extracted . | . . . Installed . | . . . Triggered . | . . . Machines | -11 -10 -10 ---------- Run | Yrd Mat Min Machines Disabled . | . . . Max in Single Turn . | . . . Machines Repaired . | . . . Machines Dismantled . | . . . Machines Sabotaged . | . . . Overloaded Fab Kills . | . . . Hacking | -11 -10 -10 --------- Run | Yrd Mat Min Machines Accessed 10 | . 9 1 Terminals 7 | . 6 1 Fabricators . | . . . Repair Stations 1 | . 1 . Recycling Units 2 | . 2 . Scanalyzers . | . . . Garrison Access . | . . . Total Hacks 31 | . 27 4 Successful 16 | . 14 2 Failed 15 | . 13 2 Catastrophic 3 | . 3 . Database Lockouts . | . . . Manual 9 | . 9 . Terminals 24 | . 20 4 Fabricators . | . . . Repair Stations 4 | . 4 . Recycling Units 3 | . 3 . Scanalyzers . | . . . Garrison Access . | . . . Terminal Hacks 10 | . 8 2 Robot Analysis 2 | . 2 . Emergency Access Points 1 | . 1 . Terminal Index 1 | . 1 . Locate Traps 2 | . 2 . Patrol Status 1 | . . 1 Hauler Manifests 1 | . 1 . Registered Components 1 | . 1 . Zone Layout 1 | . . 1 Fabricator Hacks . | . . . Repair Station Hacks 4 | . 4 . Scan Component 2 | . 2 . Repair 2 | . 2 . Recycling Unit Hacks 1 | . 1 . Retrieve Components 1 | . 1 . Scanalyzer . | . . . Garrison Access Hacks . | . . . Unauthorized Hacks 1 | . 1 . Terminals 1 | . 1 . Skim 1 | . 1 . Fabricators . | . . . Repair Stations . | . . . Recycling Units . | . . . Scanalyzers . | . . . Garrison Access . | . . . Data Cores Recovered . | . . . Used . | . . . Hacking Detections 8 | . 8 . Full Trace Events . | . . . Feedback Events . | . . . Feedback Blocked . | . . . Robot Schematics Acquired . | . . . Robots Built . | . . . Authchips . | . . . Time . | . . . Total Robot Build Rating . | . . . Part Schematics Acquired . | . . . Parts Built . | . . . Authchips . | . . . Time . | . . . Total Part Build Rating . | . . . Parts Repaired 2 | . 2 . Time 52 | . 52 . Parts Recycled . | . . . Recycled Matter . | . . . Retrieved Matter . | . . . Retrieved Components 7 | . 7 . Parts Scanalyzed . | . . . Part Schematics Acquired . | . . . Parts Damaged . | . . . Bothacking | -11 -10 -10 ------------ Run | Yrd Mat Min Used RIF Installer . | . . . Robots Hacked . | . . . Non-combat . | . . . Combat . | . . . Robot Hacks Applied . | . . . Relay Couplers Released . | . . . Fabnet Peak Effective % . | . . . Robots Rewired . | . . . Allies Hacked . | . . . Hacks Repelled . | . . . Allies | -11 -10 -10 -------- Run | Yrd Mat Min Total Allies . | . . . Largest Group . | . . . Highest-Rated Group . | . . . Highest-Rated Ally . | . . . Total Orders . | . . . Ally Attacks . | . . . Total Damage . | . . . Kills . | . . . Allies Corrupted . | . . . Allies Melted . | . . . Intel | -11 -10 -10 ------- Run | Yrd Mat Min Robot Analysis Total 2 | . 2 . Derelict Logs Recovered 1 | . . 1 Drone Launches . | . . . Drone Recoveries . | . . . Exploration | -11 -10 -10 ------------- Run | Yrd Mat Min Turns Passed 1871 | 12 1433 426 Spaces Moved 709 | 5 546 158 Core . | . . . Treads 682 | 5 546 131 Legs . | . . . Wheels 27 | . . 27 Hover . | . . . Flight . | . . . Fastest Speed 140 | 160 160 140 Average Speed 216 | 160 214 222 Slowest Speed 240 | 160 240 240 Overloaded Moves . | . . . Propulsion Burnouts . | . . . Robots Hopped . | . . . Cave-ins Triggered . | . . . Exploration Rate (%) 50 | 2 88 60 Regions Visited 2 Branch Regions 1 Pre-discovered Areas 1 | . . 1 Known Exits Taken . | . . . Unknown Exits Taken 2 | 1 1 . Scrap Searched 1 | . . 1 Spaces Dug 4 | . 4 . Terrain Destroyed 15 | . 15 . Melee . | . . . Projectile . | . . . AOE 15 | . 15 . Terrain Rammed . | . . . Walls Destroyed . | . . . Machines Disabled . | . . . Actions | -11 -10 -10 --------- Run | Yrd Mat Min Total 925 | 9 719 197 Wait 94 | . 88 6 Move 707 | 4 545 158 Hop . | . . . Pick Up 20 | . 18 2 Fast Attach 3 | . 3 . Attach 3 | . . 3 Detach . | . . . Swap 12 | 3 5 4 Drop 9 | 2 5 2 Fire 75 | . 54 21 Melee . | . . . Ram . | . . . Kick . | . . . Crush 2 | . 1 1 Escape Stasis . | . . . Rewire . | . . . Trap . | . . . Miscellaneous . | . . . Route ------- -11/Scrapyard -10/Materials (discovered 3 exits: [*Mat x2] / *Min) -10/Mines (discovered 2 exits: [*Mat x2]) History --------- Turn | Location | Event 7 | -11/Scrapyard | Discovered new exit (range 3) 13 | -11/Scrapyard | Entered Materials 284 | -10/Materials | Discovered new exit (range 12) 312 | -10/Materials | Build established: Mutant 667 | -10/Materials | Discovered new exit (range 8) 838 | -10/Materials | Repaired Lgt. Treads 866 | -10/Materials | Repaired Lgt. Treads 1109 | -10/Materials | Discovered new exit (range 16) 1446 | -10/Materials | Entered Mines 1678 | -10/Mines | Discovered new exit (range 7) 1759 | -10/Mines | Discovered new exit (range 11) 1813 | -10/Mines | Core integrity fell below 50% 1830 | -10/Mines | Core integrity fell below 20% 1831 | -10/Mines | Destroyed YI-UF0 1851 | -10/Mines | Lost 3 parts (1p1n1u) 1859 | -10/Mines | Assembled infested the area 1872 | -10/Mines | Destroyed by D-53 Grenadier with Mini Grenade Launcher Last Messages --------------- 01823_ YI-UF0 mumbles something. 01824_ U-05 Engineer lays Concrete. 01825_ K-01 Serf destroyed. 01828_ YI-UF0 mumbles something. 01829_ The unstable cave ceiling collapses. 01831_ Destroyed Shock Absorption System. 01831_ YI-UF0 destroyed. 01835_ The unstable cave ceiling collapses. 01837_ Acquired 74 matter. 01841_ The unstable cave ceiling collapses. 01844_ Acquired 14 matter. 01847_ The unstable cave ceiling collapses. 01853_ Acquired 13 matter. 01857_ The unstable cave ceiling collapses. 01859_ ALERT: Infestation in the mines, dispatching Demolisher response squad. 01866_ C-30 ARC bursts open, deploying its payload. 01866_ D-53 Grenadier unfolds itself. 01868_ The unstable cave ceiling collapses. 01872_ Lgt. Treads destroyed. Map ----- +----------------------------------------------------+ | ?????????????????????????????????????????????????? | | ?????????????????????????????????????????????????? | | ?????????????????????????????????????????????????? | | ?????????????????????????????????????????????????? | | ?????????????????????????????????????????????????? | | ?????????????????????????????????????????????????? | | ??????????????????????? ?????????????????????????? | | ??????????? ????????? ? ?????????????????????? | | ????????? ????????% ??????????????? #??# | | ??????? ???????? #?????????????? ## | | ??????? #?????? ?????????????? | | ???????? #?????# * ??????????????# | | ????????? #????# |%! #???????????????# | | ??????????# ##??# = #???????????????# | | ???????????# ##?# [% #??????????????# | | ??????????## #?# % #?????????????? | | ??????????# ### = # #?????????????? | | ??????????# ## # #??????????????? | | ???????????# #?##????????????? ? | | ??????####### ## ##????????????? ?? | | ??????# ! #????????????????? | | ??????# #????????????????? | | ??????# ### ###????????????????? | | ???????????# ##?????????????????? | | ??????????## #?????????????????? | | ??????# @ # #?????????????????? | | ??????# ####### #?????????????????? | | ??????#????????## ###?????????????????? | | ????????????????# #??????????????????? | | ????????????????## d ####???????????????? | | ?????????????????## d ##??????????#???? | | ??????????????????# # # ##???????# ### | | ??????????????????# # #???????# | | ??????????????????## #??????????# | | ???????????????????###### % #??????# | | ???????????????????????## # # #??##### | | ????????????????????????# # # # #?# | | ????????????????????????### #?# | | ?????????????????????????# ##?# ### | | ?????????????????????????## # #??# #?? | | ??????????????????????????## # <=%= #### #?? | | ???????????????????????????# #?? | | ???????????????????????????### #?? | | ?????????????????????????????? ##########?? | | ?????????????????????????????? # ##??????????? | | ??????????????????????????????########???????????? | | ?????????????????????????????????????????????????? | | ?????????????????????????????????????????????????? | | ?????????????????????????????????????????????????? | | ?????????????????????????????????????????????????? | +----------------------------------------------------+ Best States ------------- Heat Dissipation 25 Energy Generation 10 Energy Capacity 250 Matter Stores 300 Matter Capacity 300 Sight Range 16 Terrain Scan Density 10 Evasion (%) 40 Recoil Reduction 2 Item Schematics ----------------- None Robot Schematics ------------------ None Fabricated ------------ Nothing Alien Tech Used ----------------- None Achievements -------------- None Challenges ------------ None Game ------ Seed GuidedWardroneKinecellerator Manual? 0 Play Time 00:12:43 Cumulative 239.5 hours Start 2024.10.05 @ 11:08:15 End 2024.10.05 @ 11:18:08 Sessions 1 Manual Loads 0 Difficulty Rogue Special Mode None Game No. 147 Rogue 147 Adventurer 0 Explorer 0 Win Type - Total 11 Types 3/1/4/1/1/0/1/0/0 Lore% 75 Gallery% 76 Achievement% 68 Wizard Run 0 Options --------- Layout 0 ASCII 0 Keyboard 0 Movement Arrows Keybinds 0 Fullscreen 2 Font 18/SmallcapsGlow Map View 76x50 Zoom Use 0% Tactical HUD 1 Map Filters NONE Filters NONE Steam 1 RUN: 3ce0e486-b481-4a05-b6cd-10eb9205b7e5